Cogmind - Beta 13 @@@ ROGUE MODE // 2024.05.11 @ 17:26:13 Player: CONM Result: Destroyed by G-47 Trooper with Particle Gun Performance ------------- Evolutions (0) 0 Regions Visited (2) 400 Robots Destroyed (14) 70 Value Destroyed (425) 425 Prototype IDs (0) 0 Alien Tech Used (0) 0 Bonus (0) 0 TOTAL SCORE: 895 Bonus ------- None Cogmind --------- Core Integrity 0/250 Matter 203/300 Energy 160/160 System Corruption 0% Temperature Cool (9) Movement Walking (120) Location -10/Mines Parts ------- > --- POWER (1) -------- Light Nuclear Core > --- PROPULSION (2) --- Aluminum Leg Aluminum Leg > --- UTILITY (2) ------ Small Storage Unit Improved Terrain Scanner > --- WEAPON (2) ------- (None) > --- INVENTORY (8) ---- Ion Engine Aluminum Leg Structural Scanner Peak State ------------ > --- POWER ------------ Light Nuclear Core > --- PROPULSION ------- Improved Treads Improved Treads > --- UTILITY ---------- Small Storage Unit Improved Terrain Scanner > --- WEAPON ----------- Heavy Assault Rifle Heavy Assault Rifle > --- INVENTORY -------- Ion Engine Structural Scanner [Rating: 15] Favorites ----------- Power Ion Engine Engine Ion Engine Power Core Light Nuclear Core Propulsion Improved Treads Treads Improved Treads Leg Aluminum Leg Utility Small Storage Unit Device Improved Terrain Scanner Storage Small Storage Unit Processor Signal Interpreter Weapon Autogun Energy Gun EM Pulse Gun Ballistic Gun Autogun Build | -11 -10 -10 ------- Run | Yrd Mat Min Slots Evolved . | . . . Power . | . . . Propulsion . | . . . Utility . | . . . Weapon . | . . . Parts Attached 25 | 7 16 2 Power 3 | 1 2 . Engine 2 | 1 1 . Core 1 | . 1 . Reactor . | . . . Propulsion 11 | 2 7 2 Treads 5 | . 5 . Leg 6 | 2 2 2 Wheel . | . . . Hover . | . . . Flight . | . . . Utility 5 | 2 3 . Device 3 | 1 2 . Storage 1 | 1 . . Processor 1 | . 1 . Hackware . | . . . Protection . | . . . Artifact . | . . . Weapon 6 | 2 4 . Energy Gun 1 | 1 . . Energy Cannon . | . . . Ballistic Gun 5 | 1 4 . Ballistic Cannon . | . . . Launcher . | . . . Special Weapon . | . . . Impact Weapon . | . . . Slashing Weapon . | . . . Piercing Weapon . | . . . Special Melee Weapon . | . . . Unidentified Prototypes . | . . . Parts Lost 9 | . 5 4 Power 1 | . 1 . Propulsion 4 | . 2 2 Utility . | . . . Weapon 4 | . 2 2 Highest Loss Streak 3 | . 3 3 To Critical Strikes . | . . . Average Slot Usage (%) 94 | . 96 75 Engine 10 | . 11 . Core 3 | . 2 14 Treads 18 | . 21 . Leg 7 | . 5 26 Device 10 | . 10 14 Storage 14 | . 14 14 Processor 2 | . 2 . Ballistic Gun 24 | . 26 6 Naked Turns . | . . . Heaviest Build 17 | 14 17 17 Greatest Support 46 | 20 46 20 Greatest Overweight (x) 4 | 1 4 1 Average Overweight (x) . | . . . Largest Inventory Capacity 8 | 8 8 8 Average Capacity 7 | 6 8 8 Most Carried 8 | 6 8 8 Average Carried 6 | 1 6 5 Final Capacity 8 | 8 8 8 Final Carried 8 | 6 8 3 Class Distribution -------------------- 73% | Mutant 26% | Scavenger-Mutant Dominant Class ---------------- Mutant | -10/Materials Scavenger-Mutant | -10/Mines Resources | -11 -10 -10 ----------- Run | Yrd Mat Min Matter Collected 726 | 255 425 46 Remotely . | . . . Salvage Created 528 | 25 457 46 Parts 30 | 5 23 2 Haulers Intercepted 1 | . 1 . Recyclers Shooed 1 | 1 . . Parts Field Recycled . | . . . Retrieved Matter . | . . . Parts Self-Destructed . | . . . Prevented . | . . . Kills | -11 -10 -10 ------- Run | Yrd Mat Min Combat Hostiles Destroyed 11 | . 10 1 Guns 11 | . 10 1 Classes Destroyed 4 | 1 3 . Tunneler 1 | 1 . . Hauler 1 | . 1 . Operator 1 | . 1 . Grunt 11 | . 10 1 Best Kill Streak 5 | 1 5 1 Combat Bots Only 5 | . 5 1 Max Kills in Single Turn 1 | 1 1 1 Gunslinging . | . . . Exploded . | . . . Melee . | . . . Uniques/NPCs Destroyed . | . . . Combat | -11 -10 -10 -------- Run | Yrd Mat Min Hostile Shots Fired 193 | . 150 43 Missed 56 | . 43 13 Damage Taken 1675 | . 1248 427 Core 260 | . 146 114 Absorbed by Shields . | . . . Regen/Repaired (Parts) 25 | . 25 . Core Remaining (%) 100 | 100 . . Volleys Fired 73 | 9 58 6 Largest 2 | 1 2 1 Hottest 46 | 20 46 23 Shots Fired 127 | 9 112 6 Gun 127 | 9 112 6 Cannon . | . . . Launcher . | . . . Special . | . . . Kinetic 127 | 9 112 6 Thermal . | . . . Explosive . | . . . Electromagnetic . | . . . Robot Hit Streak 14 | 5 14 4 Robot Miss Streak 2 | 2 2 1 Penetration Max . | . . . Secondary Targets 4 | . 4 . Max Gunslinging Chain 1 | . 1 . Shots Hit Robots 73 | 6 63 4 Core Hits 28 | 3 22 3 Critical Kills . | . . . Critical Parts Destroyed . | . . . Critical Strikes . | . . . Melee Attacks . | . . . Impact . | . . . Slashing . | . . . Piercing . | . . . Sneak Attacks . | . . . Combat Hostiles . | . . . Follow-up Attacks . | . . . Damage Inflicted 1114 | 52 990 72 Guns 1107 | 52 986 69 Cannons . | . . . Explosions . | . . . Melee . | . . . Ramming 7 | . 4 3 Kinetic 1107 | 52 986 69 Thermal . | . . . Explosive . | . . . Electromagnetic . | . . . Impact . | . . . Slashing . | . . . Piercing . | . . . Highest Corruption . | . . . Average Corruption . | . . . Corruption Purged . | . . . Corruption Blocked . | . . . Overload Shots . | . . . Overflow Damage . | . . . Projectiles . | . . . Explosions . | . . . Melee . | . . . Knockbacks . | . . . Impact . | . . . Kinetic . | . . . Secondary . | . . . Self-Inflicted Damage . | . . . Shots . | . . . Rammed 4 | . 4 . Targets Rammed 7 | . 4 3 Kicked 3 | . . 3 Crushed . | . . . Highest Temperature 54 | . 54 9 Average Temperature 17 | . 18 5 Received Heat Transfer 996 | . 705 291 Siege Activations . | . . . Robots Corrupted . | . . . Combat Hostiles . | . . . Parts Fried . | . . . Impact Corruptions . | . . . Robots Melted . | . . . Combat Hostiles . | . . . Parts Melted . | . . . Heat Transferred . | . . . Parts Sabotaged . | . . . Parts Stolen . | . . . Parts Stripped . | . . . Power Chain Reactions . | . . . Alert | -11 -10 -10 ------- Run | Yrd Mat Min Peak Influence 170 | 5 170 40 Initial 30 | . 3 30 Average 39 | . 47 18 Maximum Alert Level . | . . . Low Security (%) 100 | 100 100 100 Level 1 . | . . . Level 2 . | . . . Level 3 . | . . . Level 4 . | . . . Level 5 . | . . . High Security . | . . . Max Security . | . . . Squads Dispatched 3 | . 3 . Investigation 1 | . 1 . Extermination . | . . . Reinforcement 2 | . 2 . Assault . | . . . Garrison . | . . . Intercept . | . . . Searches Triggered . | . . . Construction Impeded . | . . . Haulers Reinforced . | . . . Active Scanning Responses . | . . . Cargo Convoy Interrupts . | . . . Stealth | -11 -10 -10 --------- Run | Yrd Mat Min Distress Signals . | . . . Communications Jammed . | . . . Distress Signals . | . . . Times Spotted 18 | . 16 2 Peak Tracking Total 7 | . 7 2 Tactical Retreats 1 | . 1 . Traps | -11 -10 -10 ------- Run | Yrd Mat Min Traps Triggered 2 | . 2 . Indirectly . | . . . Trap Hack Attempts . | . . . Triggered . | . . . Disarmed . | . . . Reprogrammed . | . . . Reused . | . . . Traps Extracted . | . . . Installed . | . . . Triggered . | . . . Most Traps Carried 3 | . . 3 Machines | -11 -10 -10 ---------- Run | Yrd Mat Min Machines Disabled . | . . . Max in Single Turn . | . . . Machines Repaired . | . . . Machines Dismantled . | . . . Machines Sabotaged . | . . . Overloaded Fab Kills . | . . . Hacking | -11 -10 -10 --------- Run | Yrd Mat Min Machines Accessed 3 | . 3 . Terminals 2 | . 2 . Fabricators . | . . . Repair Stations 1 | . 1 . Recycling Units . | . . . Scanalyzers . | . . . Garrison Access . | . . . Total Hacks 7 | . 7 . Successful 5 | . 5 . Failed 2 | . 2 . Catastrophic 1 | . 1 . Database Lockouts . | . . . Manual 1 | . 1 . Terminals 4 | . 4 . Fabricators . | . . . Repair Stations 3 | . 3 . Recycling Units . | . . . Scanalyzers . | . . . Garrison Access . | . . . Terminal Hacks 3 | . 3 . Locate Traps 1 | . 1 . Transport Status 1 | . 1 . Zone Layout 1 | . 1 . Fabricator Hacks . | . . . Repair Station Hacks 2 | . 2 . Scan Component 1 | . 1 . Repair 1 | . 1 . Recycling Unit Hacks . | . . . Scanalyzer . | . . . Garrison Access Hacks . | . . . Unauthorized Hacks . | . . . Terminals . | . . . Fabricators . | . . . Repair Stations . | . . . Recycling Units . | . . . Scanalyzers . | . . . Garrison Access . | . . . Data Cores Recovered . | . . . Used . | . . . Hacking Detections 3 | . 3 . Full Trace Events . | . . . Feedback Events . | . . . Feedback Blocked . | . . . Robot Schematics Acquired . | . . . Robots Built . | . . . Authchips . | . . . Time . | . . . Total Robot Build Rating . | . . . Part Schematics Acquired . | . . . Parts Built . | . . . Authchips . | . . . Time . | . . . Total Part Build Rating . | . . . Parts Repaired 1 | . 1 . Time 38 | . 38 . Parts Recycled . | . . . Recycled Matter . | . . . Retrieved Matter . | . . . Retrieved Components . | . . . Parts Scanalyzed . | . . . Part Schematics Acquired . | . . . Parts Damaged . | . . . Bothacking | -11 -10 -10 ------------ Run | Yrd Mat Min Used RIF Installer . | . . . Robots Hacked . | . . . Non-combat . | . . . Combat . | . . . Robot Hacks Applied . | . . . Relay Couplers Released . | . . . Fabnet Peak Effective % . | . . . Robots Rewired . | . . . Allies Hacked . | . . . Hacks Repelled . | . . . Allies | -11 -10 -10 -------- Run | Yrd Mat Min Total Allies . | . . . Largest Group . | . . . Highest-Rated Group . | . . . Highest-Rated Ally . | . . . Total Orders . | . . . Ally Attacks . | . . . Total Damage . | . . . Kills . | . . . Allies Corrupted . | . . . Allies Melted . | . . . Intel | -11 -10 -10 ------- Run | Yrd Mat Min Robot Analysis Total . | . . . Derelict Logs Recovered . | . . . Drone Launches . | . . . Drone Recoveries . | . . . Exploration | -11 -10 -10 ------------- Run | Yrd Mat Min Turns Passed 1664 | 187 1309 168 Spaces Moved 914 | 129 676 109 Core 24 | 19 5 . Treads 484 | . 484 . Legs 406 | 110 187 109 Wheels . | . . . Hover . | . . . Flight . | . . . Fastest Speed 50 | 50 120 120 Average Speed 141 | 114 149 123 Slowest Speed 250 | 120 250 190 Overloaded Moves . | . . . Propulsion Burnouts . | . . . Robots Hopped . | . . . Cave-ins Triggered . | . . . Exploration Rate (%) 28 | 6 56 24 Regions Visited 2 Branch Regions 1 Pre-discovered Areas . | . . . Known Exits Taken . | . . . Unknown Exits Taken 2 | 1 1 . Scrap Searched . | . . . Spaces Dug . | . . . Terrain Destroyed . | . . . Melee . | . . . Projectile . | . . . AOE . | . . . Terrain Rammed . | . . . Walls Destroyed . | . . . Machines Disabled . | . . . Actions | -11 -10 -10 --------- Run | Yrd Mat Min Total 1171 | 158 877 136 Wait 103 | 8 88 7 Move 912 | 128 675 109 Hop . | . . . Pick Up 28 | 6 19 3 Fast Attach 14 | 7 7 . Attach 10 | . 8 2 Detach . | . . . Swap 1 | . 1 . Drop 23 | . 17 6 Fire 73 | 9 58 6 Melee . | . . . Ram . | . . . Kick 3 | . . 3 Crush 4 | . 4 . Escape Stasis . | . . . Rewire . | . . . Trap . | . . . Miscellaneous . | . . . Route ------- -11/Scrapyard -10/Materials -10/Mines History --------- Turn | Location | Event 24 | -11/Scrapyard | Discovered new exit (range 16) 188 | -11/Scrapyard | Entered Materials 310 | -10/Materials | Build established: Mutant 1164 | -10/Materials | Lost 3 parts (1p1n1w) 1177 | -10/Materials | Core integrity fell below 50% 1241 | -10/Materials | Repaired Lgt. Nuclear Core 1474 | -10/Materials | Discovered new exit (range 8) 1497 | -10/Materials | Entered Mines 1514 | -10/Mines | Found a hidden stash of uninstalled traps 1538 | -10/Mines | Build established: Scavenger-Mutant 1600 | -10/Mines | Core integrity fell below 20% 1634 | -10/Mines | Lost 3 parts (2n1w) 1665 | -10/Mines | Destroyed by G-47 Trooper with Particle Gun Last Messages --------------- 01518_ Acquired Proton Bomb Trap. 01534_ K-01 Serf collects debris. 01538_ Dropped Proton Bomb Trap. 01552_ Critical hit (Burn: +37). 01553_ T-07 Excavator is excavating. 01563_ G-34 Mercenary destroyed. 01565_ U-05 Engineer lays Concrete. 01566_ T-07 Excavator is excavating. 01569_ U-05 Engineer lays Concrete. 01570_ U-05 Engineer builds a Wall. 01575_ Hvy. Assault Rifle destroyed. 01586_ Aluminum Leg destroyed. 01591_ T-07 Excavator destroyed. 01591_ R-06 Scavenger collects Sml. Laser. 01596_ R-06 Scavenger collects Ion Engine. 01597_ Kicked G-47 Trooper out of the way. 01599_ Kicked G-47 Trooper. 01603_ Aluminum Leg destroyed. 01612_ Acquired 46 matter. 01627_ K-01 Serf collects debris. Map ----- +----------------------------------------------------+ | ????#???# #??#??# #?????????????? | | ????????# ####### #??????????????? | | ????????# & #??????????????? | | ????????# & & #??????????????? | | ????????########## #??????????????? | | #????????????????## ##?#?????#??????? | | ?????#??????????#?## ##???????????????? | | ?????#?????????????# ##????????????????? | | #???#???#????##???## ##??##????????????? | | ???????????????#?## ##??#??????#?????? | | ???????????????#?# ##??#???????????? | | ?????????????????# #?????????#?????? | | ????????#????????## #???????????????? | | ?????????????#????# ##???????????????? | | ??????????????????# #?#??????????????? | | ??????????????????# ### &#?????#??????????? | | ??????????????????# #### ##????????????????? | | ??????????????????# #??## #????#????????????? | | ??????????????????# #???# #?????????????????? | | ???????????????#??# #???# #?????????????????? | | ?????????????#????# ##### #?????????????????? | | ??????????????????# #??#???????#??????? | | ??????????????????# #######?????????????????? | | ??????????? ??????# ##?####????????????????? | | ?????? ??? ???????# ### ##???????????????? | | ???????????????#??# g @ #???????#???????? | | ??????????????????# #???????????????? | | ??????????????????## ##???????????????? | | ???????????????????## ###????????????????? | | ????????????????????# ##??????????????????? | | ?????????? ?????????## ##??#????????????????? | | ?????????????????????####??#?????????????????? | | ???????????????? ??????#?????????????????????? | | ??????????????????#????????#?????????????????? | | ????????????? ???????????????????????????????? | | ?????????????????#???????????????????????????? | | ?????????????????????????????????????????????? | | ?????????????????????????????????????????????? | | ?????????????????????????????????????????????? | | ??????????????????????????????#??????????????? | | ?????????????????????????????????????????????? | | | | | | | | | | | | | | | | | | | +----------------------------------------------------+ Best States ------------- Heat Dissipation 25 Energy Generation 14 Energy Capacity 250 Matter Stores 290 Matter Capacity 300 Sight Range 16 Terrain Scan Range 16 Terrain Scan Density 10 Evasion (%) 55 Recoil Reduction 2 Item Schematics ----------------- None Robot Schematics ------------------ None Fabricated ------------ Nothing Alien Tech Used ----------------- None Achievements -------------- None Challenges ------------ None Game ------ Seed MediumChromaticChip Manual? 0 Play Time 00:22:21 Cumulative 13.5 hours Start 2024.05.10 @ 22:20:28 End 2024.05.11 @ 17:26:13 Sessions 1 Manual Loads 0 Difficulty Rogue Special Mode None Game No. 31 Rogue 31 Adventurer 0 Explorer 0 Win Type - Total 0 Types 0/0/0/0/0/0/0/0/0 Lore% 15 Gallery% 14 Achievement% 12 Wizard Run 0 Options --------- Layout 1 ASCII 0 Keyboard 0 Movement Arrows Keybinds 0 Fullscreen 2 Font 24/Smallcaps Map View 50x35 Zoom Use 0% Tactical HUD 1 Map Filters NONE Filters NONE Steam 1 RUN: aa957e64-3fe4-4f9c-8586-126bd482968c